[Event "7th Sharjah Challengers 2024"]
[Site "Sharjah"]
[Date "2024.05.19"]
[Round "6.6"]
[White "Ahmad, Al Khatib"]
[Black "Abdulkarimli, Eljan"]
[Result "1/2-1/2"]
[ECO "C01"]
[WhiteElo "2380"]
[BlackElo "2067"]
[Annotator "TA"]
[PlyCount "134"]
[EventDate "2024.05.13"]
[EventType "swiss"]
[EventCountry "UAE"]
[SourceTitle "playchess.com"]
[Source "ChessBase"]
[SourceQuality "1"]
[TimeControl "5400+30"]

{[%evp 37,134,-10,0,-7,0,0,0,0,0,0,0,-8,-15,-49,-41,-58,-30,-14,-1,-35,-63,-64,-61,-60,-59,-108,-33,-91,-10,-19,0,-31,-20,-29,0,-11,0,-21,-17,-21,-21,-24,0,-7,0,0,0,-24,0,0,0,0,0,0,0,-377,-348,-408,-288,-366,-297,-276,-256,-254,0,0,64,42,54,50,56,12,59,59,59,59,62,62,58,8,64,64,62,67,67,0,0,0,0,0,0,0,0,0,0,0,0,0,0]} 1. e4 {[%emt 0:00:35]} e6 {[%emt 0:01:27]} 2. d4 {[%emt 0:00:07]} d5 {[%emt 0:00:06]} 3. exd5 {[%emt 0:00:05]} exd5 {[%emt 0:00:03]} 4. Bf4 {[%emt 0:00:09]} Bd6 {[%emt 0:02:35]} 5. Qd2 {[%emt 0:00:15]} Bf5 {[%emt 0:03:33]} 6. Nc3 {[%emt 0:02:35]} Ne7 {[%emt 0:04:39]} 7. f3 {[%emt 0:07:14]} Bxf4 {[%emt 0:29:25]} 8. Qxf4 {[%emt 0:00:08]} Bxc2 {[%emt 0:02:40]} 9. Rc1 {[%emt 0:09:15]} Bf5 {[%emt 0:01:48]} 10. Nb5 {[%emt 0:05:19]} Na6 {[%emt 0:00:22]} 11. Nxc7+ {[%emt 0:13:46]} Nxc7 {[%emt 0:00:14]} 12. Qxc7 {[%emt 0:00:33]} Rc8 {[%emt 0:02:36]} 13. Bb5+ {[%emt 0:18:03]} Bd7 {[%emt 0:01:14]} 14. Qxd8+ {[%emt 0:00:13]} Kxd8 {[%emt 0:00:18]} 15. Rxc8+ {[%emt 0:00:10]} Kxc8 {[%emt 0:01:02]} 16. Bd3 {[%emt 0:00:31]} Kc7 {[%emt 0:14:35]} 17. Ne2 {[%emt 0:01:46]} Kd6 {[%emt 0:00:18]} 18. Kd2 {[%emt 0:00:29]} Rc8 {[%emt 0:03:17]} 19. g4 {[%emt 0:07:40]} h6 {[%emt 0:02:53]} 20. Rg1 {[%emt 0:02:31]} Nc6 {[%emt 0:02:52]} 21. h4 {[%emt 0:04:50]} Nb4 {[%emt 0:01:57]} 22. Nc3 {[%emt 0:01:06]} Nxd3 {[%emt 0:02:08]} 23. Kxd3 {[%emt 0:00:10]} a5 {[%emt 0:21:58]} 24. Rb1 {[%emt 0:13:21]} h5 {[%emt 0:00:00]} 25. Rg1 {[%emt 0:00:54]} hxg4 {[%emt 0:00:00]} 26. fxg4 {[%emt 0:00:01]} Rh8 {[%emt 0:00:00]} 27. h5 {[%emt 0:00:36]} b5 {[%emt 0:00:00]} 28. Nd1 {[%emt 0:00:46]} g6 {[%emt 0:00:00]} 29. hxg6 {[%emt 0:03:49]} fxg6 {[%emt 0:00:00]} 30. Rg2 {[%emt 0:00:52]} b4 {[%emt 0:00:00]} 31. Ne3 {[%emt 0:00:44]} (31. a3 $15 {is superior.}) 31... Rh3 {[%emt 0:00:09]} (31... Bb5+ $17 32. Kd2 Rf8) 32. Ke2 {[%emt 0:03:30]} (32. a3 $15) 32... Be6 {[%emt 0:00:39]} ({Better is} 32... Bb5+ $17 33. Kd2 Rf3) 33. Kf2 {[%emt 0:02:18]} Bd7 {[%emt 0:01:44]} 34. Rg3 {[%emt 0:01:17]} Rh2+ {[%emt 0:00:47]} 35. Rg2 {[%emt 0:00:11]} Rh3 {[%emt 0:00:07]} 36. a3 {[%emt 0:02:04]} b3 {[%emt 0:01:29]} 37. Rg3 {[%emt 0:00:15]} Rh1 {[%emt 0:00:54]} 38. Rg1 {[%emt 0:00:41]} Rh2+ {[%emt 0:00:13]} 39. Rg2 {[%emt 0:00:32]} Rh3 {[%emt 0:00:06]} 40. Ke2 {[%emt 0:00:25]} Be6 {[%emt 0:00:54]} 41. Kd2 {[%emt 0:00:37]} Ke7 {[%emt 0:00:51]} 42. g5 {[%emt 0:00:32]} Rf3 {[%emt 0:00:45]} 43. Re2 {[%emt 0:00:32]} Kd6 {[%emt 0:00:25]} 44. Kc3 {[%emt 0:00:25]} a4 {[%emt 0:00:16]} 45. Kb4 {[%emt 0:00:31]} Bd7 {[%emt 0:00:02]} 46. Nd1 $2 {[%emt 0:00:34][%mdl 8192]} (46. Ka5 $1 $11 {and White is okay.}) 46... Rd3 $19 {[%emt 0:00:12]} 47. Nc3 {[%emt 0:00:05]} Rxd4+ {[%emt 0:00:09]} 48. Ka5 {[%emt 0:00:08]} Rg4 {[%emt 0:00:28]} 49. Rd2 {[%emt 0:00:56]} Bc6 {[%emt 0:00:30]} (49... Rxg5 $2 50. Ne4+ (50. Nxa4 $2 d4+ 51. Kb4 Rd5 $19) 50... Kc6 51. Nxg5 $18) 50. Kb6 {[%emt 0:00:24]} Ba8 $2 {[%emt 0:01:50]} (50... Rxg5 $2 51. Ne4+ Ke5 52. Nxg5 $18) (50... d4 $19 {[%cal Oc6e8] White must now prevent ...Be8!} 51. Nd1 Bd7 (51... Rxg5 $2 52. Rxd4+ Rd5 53. Rg4 $17)) 51. Nb5+ $11 {[%emt 0:00:51]} Kd7 {[%emt 0:00:21]} (51... Ke5 $11) 52. Rh2 {[%emt 0:00:35]} (52. Nc7 $5 Bc6 $8 53. Nxd5 Bxd5 (53... Rxg5 $2 54. Nc3+ Ke7 55. Kxc6 $18) 54. Rxd5+ Ke6 55. Rb5 $11) 52... Rxg5 {[%emt 0:00:59]} 53. Rh7+ {[%emt 0:00:24]} Ke6 {[%emt 0:00:07]} 54. Nc7+ {[%emt 0:00:33]} Ke5 {[%emt 0:00:18]} (54... Kd6 $11 55. Nxa8 Rg2) 55. Nxa8 $14 {[%emt 0:00:31]} Rg2 {[%emt 0:00:10]} 56. Kb5 {[%emt 0:00:35]} Rxb2 {[%emt 0:00:14]} 57. Kxa4 {[%emt 0:00:07]} g5 {[%emt 0:01:29]} 58. Nb6 {[%emt 0:00:10]} (58. Nc7 $14) 58... g4 {[%emt 0:00:50]} (58... Rb1 $1 $11) 59. Rg7 $14 {[%emt 0:00:34]} Rg2 {[%emt 0:00:31]} 60. Kxb3 {[%emt 0:00:10]} Rg1 {[%emt 0:00:09]} 61. a4 {[%emt 0:01:13]} (61. Kb2 $14) 61... Rb1+ $11 {[%emt 0:00:07]} 62. Kc2 {[%emt 0:00:31]} Rxb6 {[%emt 0:00:02]} 63. Rxg4 {[%emt 0:00:13]} Rc6+ {[%emt 0:00:50]} 64. Kd3 {[%emt 0:00:25]} Rc1 {[%emt 0:00:26]} 65. Rg5+ {[%emt 0:00:28]} Kd6 {[%emt 0:00:06]} 66. a5 {[%emt 0:00:10]} Ra1 {[%emt 0:00:28]} 67. a6 {[%emt 0:00:05]} Kc5 {[%emt 0:00:12]} ({Inferior is} 67... Rxa6 68. Rg6+ Ke5 69. Rxa6 Kf4 70. Kd4 Kg5 71. Ke5 (71. Kxd5 Kf4 72. Re6 Kf5 73. Re4 Kf6 74. Re5 Kf7 75. Re6 Kf8) 71... Kg4 72. Ra3 (72. Kxd5 Kf5 73. Ra4 Kf6 74. Rf4+ Kg5 75. Ke5 Kg6 76. Rf8 Kg7)) 1/2-1/2

[Event "7th Sharjah Challengers 2024"]
[Site "Sharjah"]
[Date "2024.05.19"]
[Round "6.7"]
[White "Rios Gomez, Cristhian Camilo"]
[Black "Kanyamarala, Tarun"]
[Result "1/2-1/2"]
[ECO "B30"]
[WhiteElo "2472"]
[BlackElo "2302"]
[Annotator "TA"]
[PlyCount "66"]
[EventDate "2024.05.13"]
[EventType "swiss"]
[EventCountry "UAE"]
[SourceTitle "playchess.com"]
[Source "ChessBase"]
[SourceQuality "1"]
[TimeControl "5400+30"]

{[%evp 10,66,24,26,46,35,30,23,27,27,24,31,31,25,29,22,32,25,56,0,23,21,32,4,23,0,16,0,8,0,0,-22,-29,-82,-94,-87,-66,-81,-76,-63,-72,-72,-37,-34,-36,-66,-64,-77,-12,-19,-18,-63,-56,-54,0,-50,0,-58,0]} 1. e4 {[%emt 0:00:04]} c5 {[%emt 0:00:11]} 2. Nf3 {[%emt 0:00:29]} Nc6 {[%emt 0:00:13]} 3. Bb5 {[%emt 0:00:28]} e6 {[%emt 0:00:15]} 4. O-O {[%emt 0:00:29]} Nge7 {[%emt 0:00:17]} 5. d4 {[%emt 0:00:21]} cxd4 {[%emt 0:00:16]} 6. Nxd4 {[%emt 0:00:15]} Ng6 {[%emt 0:00:30]} 7. Be2 {[%emt 0:00:14]} Be7 {[%emt 0:00:30]} 8. c4 {[%emt 0:00:37]} O-O {[%emt 0:00:49] White has an edge.} 9. Nc3 {[%emt 0:00:45]} Nxd4 {[%emt 0:01:47]} 10. Qxd4 {[%emt 0:00:14]} b6 {[%emt 0:00:11]} 11. Be3 {[%emt 0:00:20]} Bb7 {[%emt 0:00:23]} 12. Rad1 {[%emt 0:00:25]} Bc6 {[%emt 0:00:21]} 13. Qd2 {[%emt 0:00:55]} Qb8 {[%emt 0:04:26]} 14. b3 {[%emt 0:06:46]} (14. g3 $14) 14... Qb7 {[%emt 0:07:00]} 15. f3 {[%emt 0:02:38]} Rfd8 {[%emt 0:04:19]} 16. Bd3 {[%emt 0:09:18]} Bb4 {[%emt 0:12:51]} 17. Bd4 {[%emt 0:09:43]} f6 {[%emt 0:10:39]} 18. Qb2 {[%emt 0:03:47]} Nf4 {[%emt 0:09:11]} 19. e5 {[%emt 0:07:13]} f5 {[%emt 0:12:08]} 20. Bb1 {[%emt 0:01:00]} d5 {[%emt 0:08:11]} 21. a3 {[%emt 0:05:27]} (21. exd6 $11 {keeps the balance.} Rxd6 22. Ne2 Nxe2+ 23. Qxe2) 21... Bxc3 $17 {[%emt 0:03:05]} 22. Bxc3 {[%emt 0:00:11]} dxc4 {[%emt 0:00:11] [#] aiming for ...Rxd1.} 23. Rxd8+ {[%emt 0:01:21]} Rxd8 {[%emt 0:00:08]} 24. bxc4 {[%emt 0:00:12] White is weak on the light squares} Qa6 {[%emt 0:06:54]} 25. Qb4 {[%emt 0:02:04]} Qc8 {[%emt 0:05:41]} 26. Bd2 {[%emt 0:02:56]} Nd3 {[%emt 0:02:13]} 27. Bxd3 {[%emt 0:03:34]} Rxd3 {[%emt 0:00:06]} 28. Be1 {[%emt 0:01:55]} Rd1 {[%emt 0:04:41]} ({Black should try} 28... Qd8 $17) 29. Bf2 {[%emt 0:01:35]} Qd7 {[%emt 0:00:17]} 30. Qb3 {[%emt 0:04:14]} Rd3 {[%emt 0:01:47]} 31. Qb4 {[%emt 0:00:13]} Rd1 {[%emt 0:00:18]} 32. Qb3 {[%emt 0:00:07]} Rd3 {[%emt 0:00:33]} 33. Qb4 {[%emt 0:00:07]} Rd1 {[%emt 0:00:59] Weighted Error Value: White=0.13 (very precise) /Black=0.14 (very precise) .  Mistake:       	White=2     	Black=2      Inaccurate:     	White=3     	Black=2      OK:         	White=7     	Black=9      Best:        	White=1     	Black=3} (33... h6 $15) 1/2-1/2

[Event "7th Sharjah Challengers 2024"]
[Site "Sharjah"]
[Date "2024.05.19"]
[Round "6.8"]
[White "Liyanage, Ranindu Dilshan"]
[Black "Mohammad Fahad, Rahman"]
[Result "1/2-1/2"]
[ECO "C67"]
[WhiteElo "2362"]
[BlackElo "2435"]
[Annotator "TA"]
[PlyCount "22"]
[EventDate "2024.05.13"]
[EventType "swiss"]
[EventCountry "UAE"]
[SourceTitle "playchess.com"]
[Source "ChessBase"]
[SourceQuality "1"]
[TimeControl "5400+30"]

{[%evp 17,22,0,0,0,0,0,0]} 1. e4 {[%emt 0:00:04]} e5 {[%emt 0:00:08]} 2. Nf3 {[%emt 0:00:08]} Nc6 {[%emt 0:00:12]} 3. Bb5 {[%emt 0:00:15]} Nf6 {[%emt 0:00:16]} 4. O-O {[%emt 0:00:26]} Nxe4 {[%emt 0:00:14]} 5. d4 {[%emt 0:00:06][%cal Bd2d4,Bd4e5][%mdl 32]} Nd6 {[%emt 0:00:13]} 6. dxe5 {[%emt 0:00:12]} Nxb5 {[%emt 0:00:19]} 7. a4 {[%emt 0:00:06]} Nbd4 {[%emt 0:00:18]} 8. Nxd4 {[%emt 0:00:09]} d5 {[%emt 0:00:11]} 9. exd6 {[%emt 0:00:17]} Nxd4 {[%emt 0:00:08] The position is equal.} 10. Qxd4 {[%emt 0:00:03]} Qxd6 {[%emt 0:00:09]} 11. Qe4+ {[%emt 0:00:06]} Qe6 {[%emt 0:00:07] An uneventful encounter.   OK:         	---       	Black=2} 1/2-1/2

[Event "7th Sharjah Challengers 2024"]
[Site "Sharjah"]
[Date "2024.05.19"]
[Round "6.9"]
[White "Harsh Suresh"]
[Black "Borisova, Ekaterina"]
[Result "1-0"]
[ECO "A30"]
[WhiteElo "2417"]
[BlackElo "2185"]
[Annotator "TA"]
[PlyCount "95"]
[EventDate "2024.05.13"]
[EventType "swiss"]
[EventCountry "UAE"]
[SourceTitle "playchess.com"]
[Source "ChessBase"]
[SourceQuality "1"]
[TimeControl "5400+30"]

{[%evp 17,95,18,16,13,31,37,70,66,64,81,60,68,96,94,102,110,108,113,135,119,125,24,117,97,79,86,95,116,106,107,91,94,111,100,117,118,128,122,130,133,160,145,142,150,133,146,143,135,203,198,242,238,225,228,272,261,290,283,291,272,312,291,308,305,302,308,296,283,367,368,377,375,558,572,734,725,751,751,676,573]} 1. Nf3 {[%emt 0:00:14]} Nf6 {[%emt 0:00:14]} 2. g3 {[%emt 0:00:14]} g6 {[%emt 0:00:07]} 3. b3 {[%emt 0:00:14]} Bg7 {[%emt 0:00:38]} 4. Bb2 {[%emt 0:00:09]} b6 {[%emt 0:02:11]} 5. Bg2 {[%emt 0:00:19]} Bb7 {[%emt 0:00:05]} 6. c4 {[%emt 0:00:07]} O-O {[%emt 0:00:38]} 7. O-O {[%emt 0:00:09]} c5 {[%emt 0:00:55]} 8. d4 {[%emt 0:00:07]} cxd4 {[%emt 0:00:21]} 9. Qxd4 {[%emt 0:00:23]} Nc6 {[%emt 0:00:48]} 10. Qh4 {[%emt 0:05:35]} e6 {[%emt 0:14:31]} 11. Nc3 {[%emt 0:12:20]} Ne8 {[%emt 0:03:42]} 12. Rfd1 {[%emt 0:04:20] White is slightly better.} Qxh4 {[%emt 0:04:14]} 13. Nxh4 {[%emt 0:00:16]} d6 {[%emt 0:15:49]} 14. Rac1 {[%emt 0:06:54]} Na5 {[%emt 0:03:49]} 15. Nf3 {[%emt 0:04:57]} Rd8 {[%emt 0:11:48]} 16. Ba3 {[%emt 0:04:22]} a6 {[%emt 0:01:13][%cal Ba7a6,Ba6b5][%mdl 32]} 17. Na4 {[%emt 0:18:26]} b5 {[%emt 0:00:12]} 18. cxb5 {[%emt 0:00:20]} axb5 {[%emt 0:00:05]} 19. Nc3 {[%emt 0:00:08]} ({Better is} 19. Nb6 $16) 19... Bc6 {[%emt 0:06:44]} (19... Rb8 $11 20. Bb4 (20. Bxd6 $2 {is the wrong capture.} Nxd6 21. Rxd6 Rfc8 $19) 20... Nc6 21. Bxd6 Nxd6 22. Rxd6 Ne7) 20. Ne1 {[%emt 0:05:15]} Bxg2 {[%emt 0:01:29]} 21. Kxg2 {[%emt 0:01:32]} Rb8 {[%emt 0:01:04] Threatens to win with ...b4.} 22. Bb4 {[%emt 0:00:55]} (22. Bxd6 $2 {too greedy.} Nxd6 23. Rxd6 Rfc8 $19) 22... Nc6 {[%emt 0:00:11]} 23. Bxd6 {[%emt 0:00:54]} Nxd6 {[%emt 0:00:14]} 24. Rxd6 {[%emt 0:00:07]} Nb4 {[%emt 0:01:11] [#] Hoping for ...Rfc8.} 25. a3 $1 {[%emt 0:01:01]} Rfc8 {[%emt 0:02:50]} 26. axb4 {[%emt 0:00:40]} Bxc3 {[%emt 0:00:22]} 27. Nd3 {[%emt 0:00:34]} Rc7 {[%emt 0:03:57][%cal Oc3b4]} 28. Ra6 {[%emt 0:03:25]} e5 {[%emt 0:05:00][%cal Be6e5,Be5e4,Be4e3][%mdl 32]} 29. Ra2 {[%emt 0:02:44] White is more active.} e4 {[%emt 0:03:21]} 30. Nf4 {[%emt 0:00:26]} Be5 {[%emt 0:00:26]} 31. Rxc7 {[%emt 0:01:02]} Bxc7 $16 {[%emt 0:00:03][%mdl 4096] Endgame. KRB-KRN} 32. Nd5 {[%emt 0:00:13]} Bd8 {[%emt 0:00:09]} (32... Bd6 $16 33. Ra7 Kg7) 33. Ra7 $18 {[%emt 0:05:18]} Kg7 {[%emt 0:00:34] [#]} 34. Nc3 $1 {[%emt 0:04:10]} e3 {[%emt 0:00:55]} 35. f4 {[%emt 0:01:28]} Bf6 {[%emt 0:04:11]} 36. Ne4 {[%emt 0:01:48]} Rd8 {[%emt 0:00:04]} 37. Rb7 {[%emt 0:04:22]} Rd5 {[%emt 0:03:13]} 38. Kf3 {[%emt 0:01:20]} g5 {[%emt 0:00:04]} 39. fxg5 {[%emt 0:04:34]} Bxg5 {[%emt 0:00:12]} 40. h4 {[%emt 0:00:11]} Bf6 {[%emt 0:00:26]} 41. Kxe3 {[%emt 0:00:21]} Bd4+ {[%emt 0:00:09]} 42. Kf4 {[%emt 0:00:07]} h6 {[%emt 0:00:14]} 43. g4 {[%emt 0:00:36]} Be5+ {[%emt 0:00:49]} 44. Kf3 {[%emt 0:00:06]} Bb2 {[%emt 0:00:08]} (44... Rd1 $142 45. Rxb5 Bh2) 45. Ng3 {[%emt 0:00:50] White is clearly winning.} Bc3 {[%emt 0:00:44]} 46. Nf5+ {[%emt 0:00:28]} Kf6 {[%emt 0:00:07]} 47. Rb6+ {[%emt 0:00:45]} Ke5 {[%emt 0:00:07]} 48. Ne3 {[%emt 0:00:22] Weighted Error Value: White=0.07 (flawless) /Black=0.24 (precise) .  Mistake:       	White=1     	Black=3      Inaccurate:     	---       	Black=2      OK:         	White=20    	Black=8      Best:        	White=2     	Black=1      Strong:       	White=2     	---} 1-0

[Event "7th Sharjah Challengers 2024"]
[Site "Sharjah"]
[Date "2024.05.19"]
[Round "6.10"]
[White "Aradhya, Garg"]
[Black "Peycheva, Gergana"]
[Result "1-0"]
[ECO "A09"]
[WhiteElo "2388"]
[BlackElo "2295"]
[Annotator "RC"]
[PlyCount "55"]
[EventDate "2024.05.13"]
[EventType "swiss"]
[EventCountry "UAE"]
[SourceTitle "playchess.com"]
[Source "ChessBase"]
[SourceQuality "1"]
[TimeControl "5400+30"]

1. Nf3 {[%emt 0:00:03]} d5 {[%emt 0:00:20]} 2. g3 {[%emt 0:00:05]} Nf6 {[%emt 0:00:59]} 3. Bg2 {[%emt 0:00:04]} e6 {[%emt 0:02:38]} 4. O-O {[%emt 0:00:14]} c5 {[%emt 0:03:29]} 5. c4 {[%emt 0:10:07]} d4 {[%emt 0:05:20]} 6. d3 {[%emt 0:00:20]} Nc6 {[%emt 0:04:48]} 7. e4 {[%emt 0:00:24]} Be7 {[%emt 0:07:25]} 8. e5 {[%emt 0:01:30]} Nd7 {[%emt 0:02:25]} 9. Re1 {[%emt 0:00:08]} Qc7 {[%emt 0:07:29]} 10. Qe2 {[%emt 0:03:39]} b6 {[%emt 0:01:24]} 11. Bf4 {[%emt 0:17:28]} Bb7 {[%emt 0:06:22]} 12. Nbd2 {[%emt 0:01:13]} Nf8 {[%emt 0:04:22]} 13. Bg5 {[%emt 0:05:30]} Ng6 {[%emt 0:04:59]} 14. Bxe7 {[%emt 0:00:08]} Qxe7 {[%emt 0:02:12]} 15. h4 {[%emt 0:00:20]} h5 {[%emt 0:00:51]} 16. a3 {[%emt 0:03:31]} O-O-O {[%emt 0:04:41]} 17. b4 {[%emt 0:00:35]} cxb4 {[%emt 0:09:01]} 18. axb4 {[%emt 0:02:16]} Qxb4 {[%emt 0:01:41]} 19. Reb1 {[%emt 0:00:44]} Qe7 {[%emt 0:00:29]} 20. c5 {[%emt 0:01:55]} Qxc5 {[%emt 0:10:14]} 21. Rc1 {[%emt 0:00:40]} Qe7 {[%emt 0:01:45]} 22. Ng5 {[%emt 0:01:47]} Rd5 {[%emt 0:00:14]} 23. Bxd5 {[%emt 0:02:53]} exd5 {[%emt 0:00:04]} 24. e6 {[%emt 0:03:50]} f6 {[%emt 0:03:27]} 25. Nf7 {[%emt 0:00:07]} Re8 {[%emt 0:03:18]} 26. Qxh5 {[%emt 0:00:49]} Nf8 {[%emt 0:00:45]} 27. Nd6+ {[%emt 0:01:13]} Kd8 {[%emt 0:01:23]} 28. Nxe8 {[%emt 0:00:49]} 1-0

[Event "7th Sharjah Challengers 2024"]
[Site "Sharjah"]
[Date "2024.05.19"]
[Round "6.11"]
[White "Al Qudaimi, Basheer"]
[Black "Sindarov, Islombek"]
[Result "1-0"]
[ECO "B08"]
[WhiteElo "2375"]
[BlackElo "1991"]
[Annotator "TA"]
[PlyCount "101"]
[EventDate "2024.05.13"]
[EventType "swiss"]
[EventCountry "UAE"]
[SourceTitle "playchess.com"]
[Source "ChessBase"]
[SourceQuality "1"]
[TimeControl "5400+30"]

{[%evp 9,101,9,25,19,20,-2,-4,-23,-21,-7,3,17,18,19,19,15,47,47,56,51,52,41,47,39,39,36,35,31,27,8,4,9,12,0,24,0,0,0,0,0,0,0,0,0,0,0,0,0,22,14,14,0,0,0,0,0,79,76,72,72,73,77,138,138,223,120,158,133,232,230,235,235,220,217,229,222,222,209,185,185,181,147,979,147,1791,1571,1535,1454,29987,29988,29988,29989,29989,29988]} 1. d4 {[%emt 0:00:04]} Nf6 {[%emt 0:00:05]} 2. Nf3 {[%emt 0:00:05]} g6 {[%emt 0:00:04]} 3. Nc3 {[%emt 0:00:33]} Bg7 {[%emt 0:00:09]} 4. e4 {[%emt 0:00:08]} d6 {[%emt 0:00:00][%cal Bd7d6,Bd6d5][%mdl 32]} 5. h3 {[%emt 0:08:35]} O-O {[%emt 0:00:22]} 6. a4 {[%emt 0:01:03]} Nc6 {[%emt 0:07:07]} 7. Bg5 {[%emt 0:06:33]} d5 {[%emt 0:11:06]} 8. e5 {[%emt 0:13:50] The position is equal.} Ne4 {[%emt 0:00:06]} 9. Be3 {[%emt 0:03:13]} Nb4 {[%emt 0:09:19][%cal Oc7c5]} 10. Bd3 {[%emt 0:07:51]} Nxc3 {[%emt 0:11:52]} 11. bxc3 {[%emt 0:00:07]} Nxd3+ {[%emt 0:00:02]} 12. cxd3 {[%emt 0:00:03]} b6 {[%emt 0:00:54]} 13. a5 {[%emt 0:00:53]} Ba6 {[%emt 0:00:36]} 14. Qd2 {[%emt 0:00:35]} Qc8 {[%emt 0:00:26]} 15. O-O {[%emt 0:06:49]} c5 {[%emt 0:00:30]} 16. Rfb1 {[%emt 0:03:43]} Qc6 {[%emt 0:01:45]} 17. Rb2 {[%emt 0:05:25]} c4 {[%emt 0:02:22]} 18. dxc4 {[%emt 0:01:31]} Bxc4 {[%emt 0:00:07]} 19. axb6 {[%emt 0:01:23]} axb6 {[%emt 0:00:01]} 20. Rab1 {[%emt 0:00:01]} b5 {[%emt 0:10:00]} 21. Bh6 {[%emt 0:01:13]} Ra3 {[%emt 0:02:26]} 22. Re1 {[%emt 0:01:26]} Rfa8 {[%emt 0:02:50]} 23. Bxg7 {[%emt 0:02:55]} Kxg7 {[%emt 0:00:02]} 24. Nh2 {[%emt 0:04:45]} h5 {[%emt 0:02:13]} 25. Nf3 {[%emt 0:03:59]} Qc8 {[%emt 0:13:17]} 26. Nh4 {[%emt 0:08:57][%cal Oe5e6]} Ra1 {[%emt 0:01:03]} 27. Rbb1 {[%emt 0:01:23]} Rxb1 {[%emt 0:00:42]} 28. Rxb1 {[%emt 0:00:01]} Qh8 {[%emt 0:01:45]} 29. Qg5 {[%emt 0:00:42]} e6 {[%emt 0:00:07] Against Nf5+} 30. Re1 {[%emt 0:01:01]} Qd8 {[%emt 0:12:03]} 31. Qg3 {[%emt 0:00:35]} Ra3 {[%emt 0:01:40] And now ...b4 would win.} 32. Re3 {[%emt 0:00:28]} b4 {[%emt 0:00:45]} 33. cxb4 $16 {[%emt 0:02:25]} Rxe3 {[%emt 0:00:07]} 34. fxe3 {[%emt 0:00:02][%mdl 4096] Endgame. KQB-KQN} Qe7 {[%emt 0:01:42]} 35. Qe1 $1 {[%emt 0:01:30]} Qg5 {[%emt 0:01:20]} (35... Bd3 $142) 36. Nf3 {[%emt 0:00:55]} Qe7 {[%emt 0:01:11] [#]} (36... Qf5 $16 37. Kh2 g5) 37. Qb1 {[%emt 0:03:05]} (37. h4 $1 $18) 37... Qa7 {[%emt 0:00:24]} 38. Ng5 {[%emt 0:01:07]} Qe7 {[%emt 0:03:31]} (38... Qa3 $16 {was called for.} 39. Qe1 Bb5) 39. h4 $18 {[%emt 0:00:13]} Qa7 {[%emt 0:00:16]} 40. Qd1 {[%emt 0:02:31]} Bb5 {[%emt 0:01:55]} 41. Kh2 {[%emt 0:00:09]} Qe7 {[%emt 0:00:50]} 42. Qd2 {[%emt 0:00:15]} Bc4 {[%emt 0:04:28]} 43. Qf2 {[%emt 0:00:22]} Bd3 {[%emt 0:00:00]} 44. Qa2 {[%emt 0:00:27]} Qc7 {[%emt 0:00:00]} (44... Qxb4 45. Qa7 Qf8 46. Nxe6+ Kg8 47. Nxf8 Kxf8 48. Qa3+ Ke8 49. Qxd3) 45. Qb2 {[%emt 0:04:11] Threatens to win with b5.} Qc4 {[%emt 0:00:00][%mdl 8192]} (45... Qb7 $16 46. Qa2 Bb5 (46... Qxb4 47. Qa7 Qf8 48. Nxe6+ Kg8 49. Nxf8 Kxf8 50. Qa3+ Ke8 51. Qxd3)) 46. Kg3 $2 {[%emt 0:00:46]} (46. b5 $18 {and the rest is easy.}) 46... Be4 $2 {[%emt 0:01:15][%mdl 8192] [#] This move loses the game for Black.} (46... Qc6 $16 47. Qa3 Ba6) 47. b5 $1 {[%emt 0:01:22][%cal Bb4b5,Bb5b6][%mdl 32]} Qd3 {[%emt 0:00:21]} 48. Kf2 {[%emt 0:00:26] Strongly threatening b6.} f5 {[%emt 0:00:52]} 49. exf6+ {[%emt 0:00:14] White mates.} Kxf6 {[%emt 0:00:07]} 50. b6 {[%emt 0:00:16]} Qd1 {[%emt 0:00:26]} 51. Nxe4+ {[%emt 0:01:07] Weighted Error Value: White=0.23 (precise) /Black=0.29 (precise) .  Loses game:     	---       	Black=2      Missed win:     	White=1     	---        Mistake:       	White=1     	Black=4      Inaccurate:     	---       	Black=2      OK:         	White=15    	Black=15     Best:        	White=3     	---        Strong:       	White=1     	---} 1-0